Workbook

Sheet Sheet1
C1: Scaling factor | E1: a | F1: -0.1
A4: Time(mins) to facility | B4: exp(-at) | C4: Size of Facility | D4: Satisfaction at 0 Time | E4: Corrected Satisfaction for Time | F4: Dissatisfaction | G4: Dissatisfaction adjusted for size | H4: Satisfaction adjusted for size | I4: Cumulative Satisfied
A5: t | B5: E | C5: S | D5: W | E5: W*E | F5: 1-W*E | G5: (1-W*E)^S | H5: 1-(1-W*E)^S | I5: 1-ProductSum((1-W*E)^S)
A6: 4 | B6: =EXP(A6*F$1) -> 0.670320046 | C6: 1 | D6: 0.5 | E6: =B6*D6 -> 0.335160023 | F6: =1-E6 -> 0.664839977 | G6: =F6^C6 -> 0.664839977 | H6: =1-G6 -> 0.335160023 | I6: =1-Multit(G$6:G6) -> 0.335160023
A7: 5 | B7: 0.6065306597 | C7: 1 | D7: 0.7 | E7: =B7*D7 -> 0.4245714618 | F7: =1-E7 -> 0.5754285382 | G7: =F7^C7 -> 0.5754285382 | H7: =1-G7 -> 0.4245714618 | I7: =1-Multit(G$6:G7) -> 0.6174321039
A8: 8 | B8: 0.4493289641 | C8: 1 | D8: 0.5 | E8: 0.2246644821 | F8: 0.7753355179 | G8: 0.7753355179 | H8: 0.2246644821 | I8: =1-Multit(G$6:G8) -> 0.7033815221
A9: 8 | B9: 0.4493289641 | C9: 0.5 | D9: 0.5 | E9: =B9*D9 -> 0.2246644821 | F9: 0.7753355179 | G9: 0.8805313838 | H9: 0.1194686162 | I9: =1-Multit(G$6:G9) -> 0.7388181212
A10: 8 | B10: 0.4493289641 | C10: 0.5 | D10: 0.5 | E10: =B10*D10 -> 0.2246644821 | F10: 0.7753355179 | G10: 0.8805313838 | H10: 0.1194686162 | I10: =1-Multit(G$6:G10) -> 0.7700211588
A11: 14 | B11: 0.2465969639 | C11: 1 | D11: 0.4 | E11: 0.09863878558 | F11: 0.9013612144 | G11: 0.9013612144 | H11: 0.09863878558 | I11: =1-Multit(G$6:G11) -> 0.7927059924
A12: 19 | B12: 0.1495686192 | C12: 1 | D12: 0.8 | E12: 0.1196548954 | F12: 0.8803451046 | G12: 0.8803451046 | H12: 0.1196548954 | I12: =1-Multit(G$6:G12) -> 0.8175097352
A13: 20 | B13: 0.1353352832 | C13: 1 | D13: 0.9 | E13: 0.1218017549 | F13: 0.8781982451 | G13: 0.8781982451 | H13: 0.1218017549 | I13: =1-Multit(G$6:G13) -> 0.8397373697
A14: 20 | B14: 0.1353352832 | C14: 1 | D14: 0.9 | E14: 0.1218017549 | F14: 0.8781982451 | G14: 0.8781982451 | H14: 0.1218017549 | I14: =1-Multit(G$6:G14) -> 0.8592576393
H17: Total satisfaction | I17: =I14 -> 0.8592576393
